bitfinex-derivatives/quotes_BNBF0:USTF0_20250510
["timestamp","ask_amount","ask_price","bid_price","bid_amount"]
[1746870463448,0.25675989,660.53,659.37,0.91050243]
[1746870463647,0.26363337,660.52,659.36,0.30332443]
[1746870463844,0.25675989,660.51,659.36,0.30332443]
[1746870465451,0.25675989,660.51,659.37,0.91062029]
[1746870465646,0.25675989,660.51,659.36,0.30332443]
[1746870465844,0.25675989,660.51,659.38,0.30331523]
[1746870466049,0.25675989,660.51,659.39,0.91041713]
[1746870466245,0.25675989,660.51,659.4,0.91041713]
[1746870466449,0.25675989,660.51,659.41,0.91041713]
[1746870466650,0.2636134,660.5,659.39,0.30331063]
[1746870466950,0.2636134,660.5,659.4,0.91052271]
[1746870467151,0.2636134,660.5,659.39,0.30331063]
[1746870467152,0.25675989,660.49,659.41,0.91052271]
[1746870467352,0.25675989,660.49,659.39,0.30331063]
[1746870467553,0.25675989,660.49,659.4,0.91057737]
[1746870467751,0.25675989,660.49,659.41,0.91057737]
[1746870467954,0.25675989,660.49,659.42,0.91057737]
[1746870468153,0.25675989,660.49,659.39,0.30331063]
[1746870468353,0.25675989,660.49,659.4,0.91077721]
[1746870468554,0.2636134,660.5,659.41,0.91077721]
[1746870468853,0.2636134,660.5,659.42,0.91077721]
[1746870469054,0.2636134,660.5,659.43,0.91077721]
[1746870469258,0.2636134,660.5,659.44,0.91077721]
[1746870469455,0.30275965,660.59,659.45,0.91077721]
[1746870469652,0.30275965,660.59,659.46,0.91077721]
[1746870469853,0.25672433,660.58,659.47,0.91077721]
[1746870470054,0.25672433,660.58,659.39,0.30331063]
[1746870470255,0.25672433,660.58,659.4,0.91091553]
[1746870470550,0.26366932,660.57,659.41,0.91091553]
[1746870470856,0.25672433,660.56,659.42,0.91091553]
[1746870471055,0.25672433,660.56,659.43,0.91091553]
[1746870471256,0.25672433,660.56,659.44,0.91091553]
[1746870471453,0.25672433,660.56,659.45,0.91091553]
[1746870471659,0.25672433,660.56,659.46,0.91091553]
[1746870471957,0.25672433,660.56,659.47,0.91091553]
[1746870472156,0.25672433,660.56,659.48,0.91091553]
[1746870472358,0.25672433,660.56,659.49,0.91091553]
[1746870472559,0.25672433,660.58,659.5,0.91091553]
[1746870472758,0.25672433,660.58,659.51,0.91190662]
[1746870472959,0.25672433,660.58,659.39,0.30331063]
[1746870473254,0.25672433,660.58,659.4,0.91192225]
[1746870473453,0.25672433,660.58,659.41,0.91192225]
[1746870473655,0.26366832,660.57,659.42,0.91192225]
[1746870473857,0.26366832,660.57,659.43,0.91192225]
[1746870474058,0.25672433,660.56,659.44,0.91192225]
[1746870474259,0.25672433,660.56,659.45,0.91192225]
[1746870474459,0.25672433,660.56,659.46,0.91192225]
[1746870474655,0.25672433,660.56,659.47,0.91192225]
[1746870474854,0.25672433,660.56,659.48,0.91192225]
[1746870475060,0.25672433,660.56,659.49,0.91192225]
[1746870475260,0.25672433,660.56,659.5,0.91192225]
[1746870475555,0.25672433,660.56,659.51,0.91192225]
[1746870475859,0.25672433,660.56,659.52,0.91192225]
[1746870476056,0.25672433,660.56,659.53,0.91192225]
[1746870476261,0.25672433,660.56,659.54,0.91192225]
[1746870476456,0.25672433,660.56,659.55,0.91192225]
[1746870476759,0.26366832,660.57,659.56,0.91192225]
[1746870476956,0.2567344,660.55,659.39,0.30331063]
[1746870477160,0.2567344,660.55,659.4,0.91374705]
[1746870477361,0.2567344,660.56,659.41,1.21704848]
[1746870477559,0.2567344,660.56,659.42,1.21704388]
[1746870477757,0.2567344,660.56,659.43,0.91374705]
[1746870478660,0.2567344,660.58,659.43,0.91374705]
[1746870479556,0.26360341,660.57,659.43,0.91374705]
[1746870479962,0.2567344,660.56,659.43,0.91374705]
[1746870481857,0.2567344,660.58,659.43,0.91374705]
[1746870482562,0.26360341,660.57,659.43,0.91374705]
[1746870483261,0.2567344,660.56,659.43,0.91374705]
[1746870484566,0.26363137,660.55,659.43,0.91374705]
[1746870484957,0.2567344,660.54,659.43,0.91374705]
[1746870487565,0.26360741,660.53,659.43,0.91374705]
[1746870487962,0.26360741,660.53,659.44,0.91374705]
[1746870488162,0.26360741,660.53,659.45,0.91374705]
[1746870488364,0.26360741,660.53,659.46,0.91374705]
[1746870488563,0.26360741,660.53,659.47,0.91374705]
[1746870488764,0.26360741,660.53,659.48,0.91374705]
[1746870488964,0.26360741,660.53,659.49,0.91374705]
[1746870489164,0.26360741,660.53,659.5,0.91686115]
[1746870489364,0.26360741,660.53,659.51,0.91686115]
[1746870489571,0.26360741,660.53,659.52,0.91686115]
[1746870489762,0.26360741,660.53,659.53,0.91686115]
[1746870489962,0.26360741,660.53,659.54,0.91686115]
[1746870490266,0.30275965,660.59,659.55,0.91686115]
[1746870490463,0.30275965,660.59,659.56,0.91686115]
[1746870490659,0.26356847,660.58,659.57,0.91686115]
[1746870490863,0.26356847,660.58,659.58,0.91686115]
[1746870491063,0.26356847,660.58,659.59,0.91686115]
[1746870491261,0.26356847,660.58,659.6,0.91686115]
[1746870491465,0.26356847,660.58,659.46,0.26356847]
[1746870491466,0.26356847,660.58,659.61,0.91686115]
[1746870491761,0.26356847,660.58,659.62,0.91686115]
[1746870491965,0.26356847,660.58,659.63,0.91686115]
[1746870492166,0.26356847,660.58,659.64,0.91686115]
[1746870492464,0.26356847,660.58,659.65,0.91686115]
[1746870492662,0.26356847,660.58,659.66,0.91936948]
[1746870492966,0.26356847,660.58,659.67,0.91936948]
[1746870493165,0.26356847,660.58,659.68,0.91936948]
[1746870493366,0.30275965,660.59,659.69,0.91936948]
[1746870493665,0.26355949,660.57,659.53,0.26355949]
[1746870493865,0.26355949,660.57,659.54,0.91951966]
[1746870494061,0.26355949,660.57,659.55,0.91951966]
[1746870494267,0.26355949,660.57,659.56,0.91951966]
[1746870494461,0.26355949,660.57,659.57,0.91951966]
[1746870494667,0.25672383,660.56,659.53,0.26355949]
[1746870494863,0.25672383,660.56,659.54,0.91981799]
[1746870495163,0.25672383,660.56,659.55,0.91981799]
[1746870495361,0.25672383,660.56,659.56,0.91981799]
[1746870495565,0.25672383,660.56,659.53,0.26355949]
[1746870495762,0.25672383,660.56,659.54,0.91985473]
[1746870495964,0.25672383,660.56,659.55,0.91985473]
[1746870496162,0.25672383,660.56,659.53,0.26355949]
[1746870496364,0.25672383,660.56,659.54,0.91965362]
[1746870496664,0.26360042,660.55,659.55,0.91965362]
[1746870496862,0.26360042,660.55,659.53,0.26360042]
[1746870497066,0.25672383,660.54,659.54,0.91964865]
[1746870497366,0.25672383,660.54,659.55,0.91964865]
[1746870497566,0.25672383,660.54,659.53,0.26360042]
[1746870497768,0.25672383,660.54,659.54,0.91940527]
[1746870497962,0.25672383,660.54,659.55,0.91940527]
[1746870498167,0.25672383,660.54,659.53,0.26360042]
[1746870498366,0.25672383,660.54,659.54,0.91933686]
[1746870498568,0.25672383,660.54,659.55,0.91933686]
[1746870498768,0.25672383,660.54,659.56,0.91933686]
[1746870498969,0.25672383,660.54,659.53,0.26360042]
[1746870499166,0.25672383,660.54,659.54,0.91923004]
[1746870499367,0.25672383,660.54,659.55,0.91923004]
[1746870499562,0.25672383,660.54,659.56,0.91923004]
[1746870499767,0.25672383,660.54,659.57,0.91923004]
[1746870500066,0.25672383,660.54,659.58,0.91923004]
[1746870500366,0.26360042,660.55,659.59,0.91923004]
[1746870500563,0.26360042,660.55,659.6,0.91923004]
[1746870500768,0.26360042,660.55,659.61,0.91923004]
[1746870500967,0.26360042,660.55,659.62,0.91923004]
[1746870501166,0.26360042,660.55,659.63,0.91923004]
[1746870501364,0.26360042,660.55,659.64,0.91843063]
[1746870501663,0.26360042,660.55,659.65,0.91843063]
[1746870501864,0.26360042,660.55,659.66,0.91843063]
[1746870502169,0.26360042,660.55,659.67,0.91843063]
[1746870502369,1.97189568,661.26,659.68,0.91843063]
[1746870502668,0.26354552,660.63,659.59,0.26354552]
[1746870502865,0.30246204,661.24,659.6,0.9179887]
[1746870503068,0.25667433,661.23,659.61,0.91793171]
[1746870503269,0.25667433,661.22,659.62,0.91793171]
[1746870503571,0.25667433,661.21,659.63,0.91793171]
[1746870503769,0.25667433,661.2,659.64,0.91793171]
[1746870504070,0.25667433,661.19,659.65,0.91793171]
[1746870504270,0.25667433,661.18,659.66,0.91793171]
[1746870504470,0.25667433,661.17,659.59,0.26354552]
[1746870504771,1.97189568,661.13,659.6,0.91758731]
[1746870505072,0.30252151,661.11,659.61,0.91758731]
[1746870505271,0.25667433,661.1,659.62,0.91758731]
[1746870505472,0.55920499,661.09,659.63,0.91758731]
[1746870505671,0.55920499,661.09,659.64,0.91758731]
[1746870505672,0.30253524,661.08,659.64,0.91758731]
[1746870505868,0.55920957,661.08,659.65,0.91758731]
[1746870506171,0.25667433,661.07,659.6,0.26349863]
[1746870506372,0.30254439,661.06,659.61,0.91753065]
[1746870506572,0.55921872,661.06,659.62,0.9175004]
[1746870506773,0.25667433,661.05,659.63,0.9175004]
[1746870507073,0.55922788,661.04,659.64,0.9175004]
[1746870507273,0.55923245,661.03,659.65,0.9175004]
[1746870507469,0.3025627,661.02,659.6,0.26349863]
[1746870507673,0.3025627,661.02,659.61,0.91746915]
[1746870507874,0.25667943,661.01,659.62,0.91746915]
[1746870508170,0.55925129,661.0,659.63,0.91746915]
[1746870508374,0.55925586,660.99,659.64,0.91745274]
[1746870508574,0.82276446,660.99,659.65,0.91745274]
[1746870508775,0.55926044,660.98,659.42,0.30329683]
[1746870509073,0.55926502,660.97,659.43,1.19582674]
[1746870509269,0.55926502,660.97,659.44,1.22071657]
[1746870509575,0.5592696,660.96,659.45,1.49910977]
[1746870509770,0.25667943,660.95,659.46,1.49910517]
[1746870509968,0.55927417,660.95,659.47,1.49910058]
[1746870510171,0.55927417,660.95,659.48,1.22069818]
[1746870510372,0.25667943,660.94,659.49,1.22069358]
[1746870510573,0.3026039,660.93,659.5,1.49908678]
[1746870510768,0.25667943,660.92,659.51,1.19582674]
[1746870511073,0.30261306,660.91,659.52,1.19582674]
[1746870511373,0.30261306,660.91,659.5,0.30326004]
[1746870511374,0.25667943,660.9,659.53,0.91742894]
[1746870511570,0.30262222,660.89,659.54,0.91742894]
[1746870511775,0.30262222,660.89,659.55,0.91742894]
[1746870511976,0.30262222,660.89,659.56,0.91650991]
[1746870511977,0.25667943,660.88,659.56,0.91650991]
[1746870512169,0.30263137,660.87,659.57,0.91650991]
[1746870512471,0.25667943,660.86,659.58,0.91650991]
[1746870512674,0.30264053,660.85,659.59,0.91650991]
[1746870512875,0.30264053,660.85,659.6,0.91650991]
[1746870513176,0.25667943,660.84,659.61,0.91650991]
[1746870513370,0.30264969,660.83,659.62,0.91650991]
[1746870513574,0.30264969,660.83,659.63,0.91650991]
[1746870513771,0.25667943,660.82,659.64,0.91650449]
[1746870514073,0.30265885,660.81,659.5,0.56681255]
[1746870514270,0.25667943,660.8,659.51,0.91652806]
[1746870514576,0.82290834,660.8,659.52,0.91652806]
[1746870514770,0.25667943,660.79,659.53,0.91652806]
[1746870515070,0.25667943,660.79,659.54,1.21976971]
[1746870515374,0.25667943,660.79,659.55,1.21976511]
[1746870515567,0.25667943,660.79,659.56,0.91653647]
[1746870515772,0.25667943,660.79,659.57,0.91653647]
[1746870515974,0.25667943,660.79,659.58,0.91653647]
[1746870516273,0.25667943,660.79,659.59,0.91653647]
[1746870516473,0.25667943,660.79,659.6,0.91653647]
[1746870516673,0.25667943,660.79,659.61,0.91653647]
[1746870516870,0.25667943,660.79,659.62,0.91653647]
[1746870517169,0.25667943,660.79,659.63,0.91653647]
[1746870517374,0.25667943,660.79,659.64,0.91653647]
[1746870517674,0.25667943,660.79,659.65,0.91653647]
[1746870517870,0.25667943,660.79,659.55,0.30323705]
[1746870518173,0.25667943,660.79,659.56,0.91675002]
[1746870518374,0.25667943,660.79,659.57,0.91675002]
[1746870518573,0.26356149,660.78,659.58,0.91675002]
[1746870518773,0.26356149,660.78,659.59,0.91675002]
[1746870518975,0.25667943,660.77,659.6,0.91675002]
[1746870519275,0.25667943,660.77,659.61,0.91673611]
[1746870519475,0.25667943,660.77,659.62,0.91673611]
[1746870519675,0.25667943,660.77,659.63,0.91673611]
[1746870519974,0.25667943,660.77,659.64,0.91673611]
[1746870520173,0.25667943,660.77,659.65,0.91673611]
[1746870520374,0.25667943,660.77,659.55,0.30323705]
[1746870520576,0.30266343,660.8,659.56,0.91705399]
[1746870520577,0.25667943,660.79,659.56,0.91705399]
[1746870520775,0.25667943,660.79,659.57,0.91705399]
[1746870520976,0.25667943,660.79,659.58,0.91659828]
[1746870521276,0.25667943,660.79,659.59,0.91659828]
[1746870521577,0.30266343,660.8,659.6,0.91659828]
[1746870521777,0.26355949,660.78,659.61,0.91659828]
[1746870521977,0.26355949,660.78,659.62,0.91659828]
[1746870522178,0.25668219,660.77,659.63,0.91659828]
[1746870522380,0.25668219,660.77,659.64,0.91659828]
[1746870522580,0.25668219,660.77,659.65,0.91659828]
[1746870522781,0.25668219,660.77,659.56,0.26355849]
[1746870522982,0.25668219,660.77,659.57,0.91654666]
[1746870523181,0.25668219,660.77,659.58,0.91654666]
[1746870523379,0.25668219,660.77,659.59,0.91654666]
[1746870523579,0.25668219,660.77,659.6,0.91654666]
[1746870523784,0.25668219,660.77,659.61,0.91654666]
[1746870523984,0.25668219,660.77,659.62,0.91654666]
[1746870524183,0.25668219,660.77,659.63,0.91654666]
[1746870524378,0.25668219,660.77,659.64,0.91654666]
[1746870524584,0.25668219,660.77,659.65,0.91654666]
[1746870524783,0.25668219,660.77,659.66,0.91654666]
[1746870524984,0.25668219,660.77,659.56,0.26355849]
[1746870525179,0.25668219,660.77,659.57,0.91668556]
[1746870525378,0.25668219,660.77,659.58,0.91668556]
[1746870525584,0.25668219,660.77,659.59,0.91668556]
[1746870525783,0.25668219,660.77,659.6,0.91668556]
[1746870525982,0.25668219,660.77,659.61,0.91668556]
[1746870526181,0.25668219,660.77,659.62,0.91668556]
[1746870526485,0.25668219,660.77,659.63,0.91668556]
[1746870526685,0.25668219,660.79,659.64,0.91682958]
[1746870526881,0.25668219,660.79,659.65,0.91682958]
[1746870527180,0.25668219,660.79,659.66,0.91682958]
[1746870527482,0.25668219,660.79,659.67,0.91682958]
[1746870527781,0.26353155,660.78,659.6,0.26353155]
[1746870527979,0.26353155,660.78,659.61,0.9168835]
[1746870528183,0.25668219,660.77,659.62,0.9168835]
[1746870528385,0.25668219,660.77,659.63,0.9168835]
[1746870528583,0.25668219,660.77,659.64,0.91690505]
[1746870528781,0.26353155,660.78,659.65,0.91690505]
[1746870528984,0.26353155,660.78,659.66,0.91690505]
[1746870529187,0.26353155,660.78,659.67,0.91690505]
[1746870529485,0.30266343,660.8,659.68,0.91690505]
[1746870529686,0.30266343,660.8,659.69,0.91690505]
[1746870529887,0.30266343,660.8,659.7,0.91690505]
[1746870530081,0.30266343,660.8,659.71,0.91690505]
[1746870530287,0.30266343,660.8,659.72,0.91561213]
[1746870530587,0.2635096,660.79,659.73,0.91561213]
[1746870530786,0.2635096,660.79,659.74,0.91561213]
[1746870531083,0.2635096,660.79,659.75,0.91561213]
[1746870531286,0.2635096,660.79,659.76,0.91561213]
[1746870531486,0.2635096,660.79,659.77,0.91561213]
[1746870531689,0.2635096,660.79,659.64,0.2635096]
[1746870531889,0.2635096,660.79,659.65,1.21837657]
[1746870532090,0.2635096,660.79,659.66,0.91518549]
[1746870532288,0.2635096,660.79,659.67,0.91518549]
[1746870532487,0.2635096,660.79,659.68,0.91518549]
[1746870532690,0.2635096,660.79,659.69,0.91518549]
[1746870532886,0.2635096,660.79,659.7,0.91518549]
[1746870533092,0.2635096,660.79,659.71,0.91518549]
[1746870533389,0.2635096,660.79,659.72,0.91518549]
[1746870533590,0.2635096,660.79,659.73,0.91518549]
[1746870533891,0.2635096,660.79,659.74,0.91518549]
[1746870534085,0.2635096,660.79,659.75,0.91518549]
[1746870534290,0.2635096,660.79,659.76,0.91518549]
[1746870534591,0.2635096,660.79,659.65,0.30319108]
[1746870534784,0.2635096,660.79,659.66,0.91469374]
[1746870534988,0.2635096,660.79,659.67,0.91469374]
[1746870535189,0.2635096,660.79,659.68,0.91469374]
[1746870535391,0.30266343,660.8,659.69,0.91469374]
[1746870535587,0.26351359,660.78,659.7,0.91469374]
[1746870535785,0.26351359,660.78,659.71,0.91469374]
[1746870535991,0.26351359,660.78,659.72,0.91372391]
[1746870536191,0.26351359,660.78,659.73,0.91372391]
[1746870536393,0.26351359,660.78,659.74,0.91372391]
[1746870536692,0.26351359,660.78,659.75,0.91372391]
[1746870536998,0.26351359,660.78,659.76,0.91337419]
[1746870537188,0.26351359,660.78,659.66,0.26351359]
[1746870537392,0.26351359,660.78,659.67,0.91288664]
[1746870537592,0.26351359,660.78,659.68,0.91288664]
[1746870537793,0.25663227,660.77,659.69,0.9127243]
[1746870537989,0.26351359,660.78,659.7,0.9127243]
[1746870538193,0.26351359,660.78,659.71,0.9127243]
[1746870538494,0.30266343,660.8,659.72,0.9127243]
[1746870538693,0.30266343,660.8,659.65,0.56671964]
[1746870538893,0.30266343,660.8,659.66,0.91284267]
[1746870539090,0.30266343,660.8,659.67,0.91284267]
[1746870539293,0.30266343,660.8,659.68,0.91284267]
[1746870539494,0.30266343,660.8,659.65,0.56671964]
[1746870539689,0.26353953,660.79,659.65,0.56671964]
[1746870541395,0.30266343,660.8,659.65,0.30319108]
[1746870542595,0.26355151,660.79,659.65,0.30319108]
[1746870542894,0.52023639,660.79,659.65,0.30319108]
[1746870543295,0.25668488,660.78,659.65,0.30319108]
[1746870545096,0.25668488,660.79,659.65,0.30319108]
[1746870545497,0.25668488,660.79,659.66,0.91132806]
[1746870545793,0.26355251,660.78,659.65,0.30319108]
[1746870545992,0.26355251,660.78,659.66,0.9113708]
[1746870546193,0.25668488,660.77,659.65,0.30319108]
[1746870546396,0.25668488,660.77,659.66,0.91116643]
[1746870546691,0.25668488,660.77,659.67,0.91116643]
[1746870546995,0.25668488,660.77,659.65,0.30319108]
[1746870547196,0.25668488,660.77,659.66,0.91106189]
[1746870547396,0.25668488,660.77,659.67,0.91106189]
[1746870547599,0.25668488,660.77,659.68,0.91130699]
[1746870547893,0.25668488,660.77,659.65,0.30319108]
[1746870548092,0.25668488,660.79,659.66,0.91118984]
[1746870548294,0.25668488,660.79,659.67,0.91118984]
[1746870548493,0.26354153,660.78,659.68,0.91120149]
[1746870548693,0.25668488,660.77,659.65,0.30319108]
[1746870548897,0.25668488,660.77,659.66,0.91119883]
[1746870549098,0.25668488,660.77,659.67,0.91119883]
[1746870549393,0.25668488,660.77,659.68,0.91119883]
[1746870549699,0.25668488,660.77,659.65,0.30319108]
[1746870549897,0.25668488,660.77,659.66,0.91127197]
[1746870550094,0.26354153,660.78,659.67,0.91127197]
[1746870550293,0.25667823,660.77,659.68,0.91127197]
[1746870550497,0.25667823,660.79,659.65,0.30319108]
[1746870550793,0.26354053,660.77,659.66,0.91117458]
[1746870550997,0.26354053,660.77,659.67,0.91117458]
[1746870551198,0.25667823,660.76,659.68,0.91117458]
[1746870551392,0.25667823,660.76,659.69,0.91117458]
[1746870551598,0.25667823,660.76,659.7,0.91117458]
[1746870551798,0.25667823,660.76,659.71,0.91117458]
[1746870552098,0.25667823,660.76,659.65,0.30319108]
[1746870552298,0.25667823,660.76,659.66,0.90989273]
[1746870552495,0.25667823,660.76,659.67,0.90989273]
[1746870552698,0.25667823,660.76,659.68,0.90989273]
[1746870552894,0.25667823,660.76,659.69,0.90989273]
[1746870553094,0.25667823,660.76,659.7,0.90989273]
[1746870553293,0.25667823,660.76,659.71,0.90960626]
[1746870553499,0.25667823,660.76,659.65,0.30319108]
[1746870553697,0.26353754,660.75,659.66,0.90983521]
[1746870553900,0.25667823,660.74,659.67,0.90983521]
[1746870554100,0.26353754,660.75,659.68,0.90983521]
[1746870554300,0.26353754,660.75,659.69,0.90983521]
[1746870554603,0.25666208,660.74,659.7,0.90983521]
[1746870554801,0.25666208,660.74,659.65,0.30319108]
[1746870555000,0.25666208,660.74,659.66,0.91040618]
[1746870555197,0.25666208,660.74,659.67,0.91040618]
[1746870555402,0.25666208,660.74,659.68,0.91040618]
[1746870555702,0.25666208,660.74,659.69,0.91040618]
[1746870555903,0.25666208,660.74,659.7,0.91040618]
[1746870556103,0.25666208,660.74,659.65,0.30319108]
[1746870556299,0.25666208,660.74,659.66,0.91066608]
[1746870556500,0.25666208,660.79,659.67,0.91066608]
[1746870556704,0.25666208,660.79,659.68,0.91066608]
[1746870556907,0.25666208,660.79,659.69,0.91066608]
[1746870557201,0.25666208,660.79,659.7,0.91066608]
[1746870557406,0.25666208,660.79,659.71,0.91066608]
[1746870557602,0.26353754,660.78,659.72,0.91066608]
[1746870557805,0.26353754,660.78,659.65,0.30319108]
[1746870558006,0.25666208,660.77,659.66,0.91134429]
[1746870558206,0.25666208,660.77,659.67,0.91134429]
[1746870558406,0.25666208,660.77,659.68,0.91134429]
[1746870558608,0.25666208,660.77,659.65,0.30319108]
[1746870558808,0.25666208,660.77,659.66,0.91142201]
[1746870559004,0.25666208,660.77,659.67,0.91142201]
[1746870559207,0.25666208,660.77,659.68,0.91142201]
[1746870559407,0.25666208,660.77,659.69,0.91142201]
[1746870559607,0.25666208,660.77,659.65,0.30319108]
[1746870559808,0.25666208,660.77,659.66,0.91125316]
[1746870560007,0.25666208,660.79,659.67,0.91125316]
[1746870560208,0.25666208,660.79,659.68,0.91125316]
[1746870560508,0.25666208,660.79,659.65,0.30319108]
[1746870560705,0.26354552,660.78,659.66,0.91117522]
[1746870560907,0.25666208,660.77,659.67,0.91117522]
[1746870561107,0.25666208,660.77,659.68,0.91117522]
[1746870561307,0.25666208,660.77,659.65,0.30319108]
[1746870561506,0.25666208,660.77,659.66,0.91093597]
[1746870561705,0.25666208,660.77,659.67,0.91093597]
[1746870561905,0.25666208,660.77,659.68,0.91093597]
[1746870562109,0.25666208,660.77,659.65,0.30319108]
[1746870562310,0.25666208,660.77,659.66,0.91094194]
[1746870562504,0.25666208,660.77,659.65,0.30319108]
[1746870562505,0.25666208,660.77,659.67,0.91094194]
[1746870562809,0.25666208,660.79,659.68,0.91094194]
[1746870563008,0.25666208,660.79,659.65,0.30319108]
[1746870563209,0.25666208,660.79,659.66,0.91126291]
[1746870563407,0.25666208,660.79,659.67,0.91126291]
[1746870563611,0.26354752,660.78,659.65,0.30319108]
[1746870564115,0.25666208,660.77,659.65,0.30319108]
[1746870565310,0.26354752,660.78,659.65,0.30319108]
[1746870565615,0.25669899,660.77,659.65,0.30319108]
[1746870568615,0.2635535,660.76,659.65,0.30319108]
[1746870568917,0.25669899,660.75,659.65,0.30319108]
[1746870571617,0.2635575,660.74,659.65,0.30319108]
[1746870572322,0.25669899,660.73,659.65,0.30319108]
[1746870574823,0.25669899,660.79,659.65,0.30319108]
[1746870575621,0.26362238,660.78,659.65,0.30319108]
[1746870576120,0.25669899,660.77,659.65,0.30319108]
[1746870580920,0.30266343,660.8,659.65,0.30319108]
[1746870581225,0.25682418,660.79,659.65,0.30319108]
[1746870581627,0.52045355,660.79,659.65,0.30319108]
[1746870582221,0.25682418,660.78,659.65,0.30319108]
[1746870583928,0.25682418,660.79,659.65,0.30319108]
[1746870584128,0.25682418,660.77,659.65,0.30319108]
[1746870584329,0.25682418,660.79,659.65,0.30319108]
[1746870584631,0.26363037,660.76,659.65,0.30319108]
[1746870585530,0.25682418,660.75,659.65,0.30319108]
[1746870585931,0.25682418,660.74,659.65,0.30319108]
[1746870586232,0.25682418,660.73,659.65,0.30319108]
[1746870586427,0.25682418,660.72,659.65,0.30319108]
[1746870586926,0.26363037,660.73,659.65,0.30319108]
[1746870587127,0.25682418,660.71,659.65,0.30319108]
[1746870587327,0.25682418,660.72,659.65,0.30319108]
[1746870587828,0.25682418,660.71,659.65,0.30319108]
[1746870588133,0.25682418,660.72,659.65,0.30319108]
[1746870588735,0.25682418,660.71,659.65,0.30319108]
[1746870589028,0.25682418,660.7,659.65,0.30319108]
[1746870589332,0.25682418,660.69,659.65,0.30319108]
[1746870589833,0.25682418,660.72,659.65,0.30319108]
[1746870590032,0.25682418,660.79,659.65,0.30319108]
[1746870590630,0.26360841,660.78,659.65,0.30319108]
[1746870591135,0.25682418,660.77,659.65,0.30319108]
[1746870592731,0.26359443,660.76,659.65,0.30319108]
[1746870593235,0.25682418,660.75,659.65,0.30319108]
[1746870595539,0.25682418,660.75,658.51,0.96479628]
[1746870595736,0.26359443,660.74,659.37,0.26359443]
[1746870595932,0.26359443,660.74,658.52,0.90840473]
[1746870595933,0.26359443,660.74,658.51,0.96479628]
[1746870596237,0.25682418,660.73,658.52,0.90841782]
[1746870596437,0.25682418,660.73,658.53,0.90841782]
[1746870596732,0.25682418,660.73,658.54,0.90841782]
[1746870596934,0.25682418,660.73,658.55,0.90841782]
[1746870597134,0.25682418,660.73,658.56,0.90841782]
[1746870597338,0.25682418,660.73,658.57,0.90841782]
[1746870597535,0.25682418,660.73,658.58,0.90841782]
[1746870597835,0.25682418,660.73,658.59,1.18690355]
[1746870598038,0.25682418,660.73,658.6,0.90841782]
[1746870598235,0.25682418,660.73,658.61,0.90841782]
[1746870598539,0.25682418,660.73,658.62,1.18690355]
[1746870598739,0.25682418,660.73,658.63,0.90841782]
[1746870598935,0.25682418,660.73,658.64,0.90841782]
[1746870599135,0.25682418,660.73,658.65,0.90841782]
[1746870599339,0.25682418,660.73,658.66,1.18690355]
[1746870599542,0.25682418,660.73,658.67,0.90841782]
[1746870599734,0.25682418,660.73,658.68,0.90841782]
[1746870599939,0.25682418,660.73,658.69,1.18690355]
[1746870600236,0.25682418,660.73,658.7,0.90841782]
[1746870600437,0.25682418,660.73,658.71,0.90841782]
[1746870600636,0.25682418,660.73,658.7,0.27848573]
[1746870600637,0.25682418,660.73,658.72,0.90861753]
[1746870600837,0.25682418,660.73,658.73,0.90861753]
[1746870601038,0.25682418,660.73,658.74,0.90861753]
[1746870601242,0.25682418,660.73,658.75,0.90861753]
[1746870601542,0.25682418,660.73,658.76,0.90861753]
[1746870601738,0.26364635,660.72,658.77,0.90861753]
[1746870601943,0.26364635,660.72,658.78,0.90861753]
[1746870602238,0.25682418,660.71,658.79,0.90861753]
[1746870602441,0.25682418,660.71,658.8,0.90861753]
[1746870602642,0.25682418,660.71,658.81,0.90861753]
[1746870602842,0.25682418,660.71,658.82,0.90861753]
[1746870603044,0.25682418,660.71,658.83,0.90861753]
[1746870603240,0.25682418,660.71,658.84,0.90861753]
[1746870603441,0.25682418,660.71,658.85,0.90872491]
[1746870603641,0.25682418,660.71,658.86,0.90872491]
[1746870603842,0.25682418,660.71,658.87,1.18726052]
[1746870604040,0.25682418,660.71,658.66,0.96479628]
[1746870604041,0.25682418,660.71,658.88,1.18726052]
[1746870604241,0.25682418,660.71,658.89,0.90877479]
[1746870604542,0.25682418,660.71,658.9,0.90877479]
[1746870604747,0.26363836,660.7,658.91,0.90877479]
[1746870605042,0.26363836,660.7,658.92,0.90877479]
[1746870605246,0.25682418,660.69,658.93,0.27848573]
[1746870605446,0.25682418,660.69,658.94,0.90877479]
[1746870605644,0.25682418,660.69,658.95,0.90877479]
[1746870605840,0.25682418,660.69,658.96,0.90877479]
[1746870606045,0.25682418,660.69,658.97,0.90877479]
[1746870606243,0.25682418,660.69,658.98,1.18726052]
[1746870606446,0.25682418,660.69,658.99,0.90877479]
[1746870606647,0.25682418,660.69,659.0,0.90877479]
[1746870606847,0.25682418,660.69,659.01,0.90877479]
[1746870607049,0.25682418,660.69,659.02,0.90877479]
[1746870607349,0.25682418,660.69,659.03,1.18677577]
[1746870607545,0.25682418,660.69,659.04,0.90829004]
[1746870607750,0.26360741,660.68,659.04,1.18677577]
[1746870608048,0.26360741,660.68,659.05,0.90829004]
[1746870608249,0.25682418,660.67,659.05,1.18677577]
[1746870608445,0.25682418,660.67,659.06,1.18677577]